[Event "26th Womens ECCC 2022"]
[Site "Mayrhofen"]
[Date "2022.10.07"]
[Round "5.4"]
[White "Efroimski, Marsel"]
[Black "Majdan, Joanna"]
[Result "1-0"]
[ECO "B62"]
[WhiteElo "2462"]
[BlackElo "2301"]
[Annotator "TA"]
[PlyCount "49"]
[EventDate "2022.10.03"]
[EventType "team-tourn"]
[EventCountry "AUT"]
[SourceTitle "playchess.com"]
[Source "ChessBase"]
[SourceQuality "1"]
[TimeControl "40/5400+30:1800+30"]

{[%evp 13,49,24,46,45,52,29,54,43,45,70,56,49,42,54,69,22,52,63,84,61,124,58,114,108,399,381,551,589,585,558,1362,1341,29952,29963,6401,6407,2295,1986]} 1. e4 {[%emt 0:00:02]} c5 {[%emt 0:00:05]} 2. Nf3 {[%emt 0:00:02]} Nc6 {[%emt 0:00:20]} 3. d4 {[%emt 0:00:04]} cxd4 {[%emt 0:00:04]} 4. Nxd4 {[%emt 0:00:01]} Nf6 {[%emt 0:00:09]} 5. Nc3 {[%emt 0:00:04]} d6 {[%emt 0:00:04]} 6. Bg5 {[%emt 0:00:03]} e6 {[%emt 0:00:18]} 7. Qd3 {[%emt 0:00:04]} a6 {[%emt 0:01:01]} 8. Nxc6 {[%emt 0:00:04] is now debated instead of 8.0-0-0. B62: Sicilian: Richter-Rauzer: 6...e6: Unusual White 7th moves.} bxc6 {[%emt 0:00:14]} 9. O-O-O {[%emt 0:00:04][%cal Oe4e5]} Qa5 {[%emt 0:09:43]} 10. h4 {[%emt 0:00:24] [#] White is slightly better.} Rb8 $146 {[%emt 0:09:06]} ({Predecessor:} 10... Be7 11. Be2 Rb8 12. Qg3 Qb4 13. b3 h6 14. Bd2 Nxe4 15. Nxe4 Qxe4 16. Qxg7 Qh7 {1-0 (61) Aagaard,J (2464)-Lima,D (2488) Charlotte 2022}) 11. Qg3 {[%emt 0:16:03]} h6 {[%emt 0:12:37]} 12. Bxf6 {[%emt 0:05:19]} gxf6 {[%emt 0:00:18]} 13. Bc4 {[%emt 0:03:19]} h5 {[%emt 0:04:01]} 14. Rd3 {[%emt 0:07:03] White is more active.} (14. f4 $14) 14... Qc5 {[%emt 0:08:11]} 15. Bb3 {[%emt 0:00:40]} a5 {[%emt 0:00:20]} 16. Rhd1 {[%emt 0:02:26]} e5 {[%emt 0:08:33]} ({Black should try} 16... Ba6 $14) 17. Na4 {[%emt 0:03:38]} (17. Kb1 $16) 17... Qb4 {[%emt 0:02:32] [#]} ({Better is} 17... Qa7 $1 $14) 18. f3 $1 $16 {[%emt 0:14:29][%cal Od3d6] Strongly threatening Rxd6!} Ba6 $2 {[%emt 0:11:56][%mdl 8192] Black cannot hold the game after this.} (18... Be6 $16) 19. a3 $18 {[%emt 0:07:45]} Qb5 {[%emt 0:00:32]} (19... Qb7 $142 20. Rxd6 Bxd6) 20. Rxd6 {[%emt 0:02:00]} Bxd6 {[%emt 0:03:41]} 21. Qg7 {[%emt 0:03:13]} Qxb3 {[%emt 0:09:49]} 22. cxb3 {[%emt 0:01:54]} Ke7 {[%emt 0:00:03] [#]} 23. Rxd6 $1 {[%emt 0:00:36][%mdl 512]} Kxd6 {[%emt 0:00:33]} 24. Qxf6+ {[%emt 0:00:04]} Kc7 {[%emt 0:00:46]} 25. Qxf7+ {[%emt 0:01:51] Weighted Error Value: White=0.09 (flawless) /Black=1.06} 1-0

[Event "26th Womens ECCC 2022"]
[Site "Mayrhofen"]
[Date "2022.10.07"]
[Round "5.5"]
[White "Salimova, Nurgyul"]
[Black "Danielian, Elina"]
[Result "1/2-1/2"]
[ECO "D26"]
[WhiteElo "2415"]
[BlackElo "2431"]
[Annotator "TA"]
[PlyCount "85"]
[EventDate "2022.10.03"]
[EventType "team-tourn"]
[EventCountry "AUT"]
[SourceTitle "playchess.com"]
[Source "ChessBase"]
[SourceQuality "1"]
[TimeControl "40/5400+30:1800+30"]

{[%evp 11,85,22,26,20,20,25,16,7,6,-5,-5,-3,20,20,23,20,30,13,49,44,57,55,47,39,33,46,45,41,40,10,8,8,8,8,8,2,16,-8,0,0,0,0,0,-24,-14,-20,-5,-15,-16,-29,-19,-19,-16,-18,0,0,0,-4,0,0,24,2,4,0,0,0,0,0,0,0,0,0,0,0,0,0]} 1. d4 {[%emt 0:00:03]} d5 {[%emt 0:00:06]} 2. Nf3 {[%emt 0:00:08]} Nf6 {[%emt 0:00:04]} 3. c4 {[%emt 0:00:17]} dxc4 {[%emt 0:00:05]} 4. e3 {[%emt 0:00:06]} e6 {[%emt 0:00:04]} 5. Bxc4 {[%emt 0:00:05]} c5 {[%emt 0:00:03]} 6. O-O {[%emt 0:00:19]} Nc6 {[%emt 0:02:29]} 7. Nc3 {[%emt 0:03:14] D26: Queen's Gambit Accepted: 4 e3 e6 5 Bxc5 c5 sidelines.} a6 {[%emt 0:00:16]} 8. Be2 {[%emt 0:00:30]} cxd4 {[%emt 0:05:06]} 9. exd4 {[%emt 0:00:58]} Be7 {[%emt 0:00:13]} 10. Bf4 {[%emt 0:04:34]} O-O {[%emt 0:01:33]} 11. Rc1 {[%emt 0:01:26]} Nb4 {[%emt 0:18:11]} 12. Ne5 {[%emt 0:06:33]} Nbd5 {[%emt 0:07:08]} 13. Bg3 {[%emt 0:06:32] [#]} Bd7 $146 {[%emt 0:02:23][%cal Od7b5]} ({Predecessor:} 13... Nxc3 14. bxc3 Ne4 15. Bf3 Nxg3 16. hxg3 Bd6 17. Re1 Qc7 18. Qb3 Rb8 {1-0 (59) Sturc,G (2046)-Hornak,P (1780) Bratislava 2010}) 14. Qb3 {[%emt 0:07:24]} b5 {[%emt 0:18:37]} 15. Bf3 {[%emt 0:02:04]} Be8 {[%emt 0:00:19]} 16. Nxd5 {[%emt 0:06:07]} Nxd5 {[%emt 0:00:08]} 17. Bxd5 {[%emt 0:00:18]} Qxd5 {[%emt 0:02:42]} 18. Qxd5 {[%emt 0:00:15]} exd5 {[%emt 0:00:03]} 19. Nd3 {[%emt 0:01:37]} Bd7 {[%emt 0:08:09]} 20. Rfe1 {[%emt 0:18:44]} Rfe8 {[%emt 0:09:46]} 21. Rc7 {[%emt 0:04:50]} Be6 {[%emt 0:14:21]} 22. Nc5 {[%emt 0:08:58]} Bf6 {[%emt 0:03:50]} 23. Be5 {[%emt 0:09:38] White wants to play Bxf6.} Bf5 {[%emt 0:00:10] ...Bd8 is the strong threat.} 24. f3 {[%emt 0:11:37]} h5 {[%emt 0:00:28]} 25. Kf2 {[%emt 0:00:55] Black must now prevent Bxf6.} Bg5 {[%emt 0:01:03]} 26. Nb7 {[%emt 0:02:00] [#] And now Nd6 would win.} Rac8 {[%emt 0:03:17]} 27. Rxc8 {[%emt 0:02:31]} Rxc8 {[%emt 0:00:01]} 28. Nc5 {[%emt 0:00:49]} a5 {[%emt 0:01:11]} 29. g3 {[%emt 0:00:56]} Be7 {[%emt 0:01:04]} 30. Rc1 {[%emt 0:00:49]} f6 {[%emt 0:00:47]} 31. Bf4 {[%emt 0:00:08]} g5 {[%emt 0:01:23]} 32. Bd2 {[%emt 0:00:16]} b4 {[%emt 0:00:38]} 33. a3 {[%emt 0:00:48]} bxa3 {[%emt 0:00:24]} 34. bxa3 {[%emt 0:00:04]} a4 {[%emt 0:00:45]} 35. Bb4 {[%emt 0:00:33]} Bxc5 {[%emt 0:00:27]} 36. Rxc5 {[%emt 0:00:23]} Rxc5 {[%emt 0:00:18] The position is equal.} 37. Bxc5 $11 {[%emt 0:00:36][%mdl 4096] Endgame KB-KB} Kf7 {[%emt 0:00:11]} 38. Ke3 {[%emt 0:00:10]} Ke6 {[%emt 0:00:13]} 39. Kd2 {[%emt 0:00:34]} Bb1 {[%emt 0:00:32]} 40. Ke3 {[%emt 0:00:12]} Bc2 {[%emt 0:00:11]} 41. Kd2 {[%emt 0:30:36]} Bb3 {[%emt 0:30:27]} 42. Ke3 {[%emt 0:00:09]} Bd1 {[%emt 0:00:21]} 43. Bb4 {[%emt 0:00:40] Weighted Error Value: White=0.05 (flawless) /Black=0.06 (flawless)} 1/2-1/2

[Event "26th Womens ECCC 2022"]
[Site "Mayrhofen"]
[Date "2022.10.07"]
[Round "5.6"]
[White "Ushenina, Anna"]
[Black "Roebers, Eline"]
[Result "1-0"]
[ECO "E10"]
[WhiteElo "2445"]
[BlackElo "2352"]
[Annotator "TA"]
[PlyCount "61"]
[EventDate "2022.10.03"]
[EventType "team-tourn"]
[EventCountry "AUT"]
[SourceTitle "playchess.com"]
[Source "ChessBase"]
[SourceQuality "1"]
[TimeControl "40/5400+30:1800+30"]

{[%evp 21,61,41,60,48,78,93,91,77,86,69,83,106,101,114,124,83,111,110,111,91,154,139,150,148,178,172,216,177,383,364,402,402,385,397,392,392,612,614,606,576,637,442]} 1. d4 {[%emt 0:00:03]} Nf6 {[%emt 0:00:04]} 2. c4 {[%emt 0:00:22]} e6 {[%emt 0:00:04]} 3. Nf3 {[%emt 0:06:37]} d5 {[%emt 0:00:14]} 4. e3 {[%emt 0:00:58]} c6 {[%emt 0:02:57]} 5. Bd3 {[%emt 0:00:48]} Nbd7 {[%emt 0:01:31]} 6. O-O {[%emt 0:00:18]} Bd6 {[%emt 0:00:20]} 7. Nbd2 {[%emt 0:00:23]} O-O {[%emt 0:00:38]} 8. e4 {[%emt 0:00:11]} dxe4 {[%emt 0:00:26]} 9. Nxe4 {[%emt 0:00:03]} Nxe4 {[%emt 0:03:44]} 10. Bxe4 {[%emt 0:00:02]} Nf6 {[%emt 0:00:07]} 11. Bc2 {[%emt 0:03:40]} b6 {[%emt 0:07:03] 11...c5 gains popularity.} 12. Qd3 {[%emt 0:29:38] D46: Semi-Slav: 5 e3 Nbd7 6 Bd3, Black avoids the Meran.} Bb7 {[%emt 0:09:09]} 13. Bg5 {[%emt 0:03:10] [#] Bxf6 is the strong threat.} g6 {[%emt 0:00:27]} 14. Rad1 {[%emt 0:07:42] White is better.} Be7 {[%emt 0:04:01]} 15. Qe2 {[%emt 0:10:56]} Rc8 {[%emt 0:07:21]} 16. Rfe1 {[%emt 0:03:13] [#]} Nh5 $146 {[%emt 0:08:56]} ({Predecessor:} 16... Re8 17. Ne5 Qc7 18. Qf3 Kg7 19. Qh3 c5 20. Ba4 Red8 21. Nxf7 Rxd4 22. Rxd4 cxd4 23. Qxe6 Ng8 24. Bxe7 Qxe7 25. Qxe7 Nxe7 26. Rxe7 {1-0 (26) Morchiashvili,B (2361)-Nozdrin,A (2323) Moscow 2006}) 17. Bh6 {[%emt 0:00:20]} Re8 {[%emt 0:00:31]} 18. a3 {[%emt 0:06:23] Prevents Bb4.} Qc7 {[%emt 0:20:01]} 19. Ne5 {[%emt 0:00:18][%cal Oe5f7]} Bf6 {[%emt 0:03:58]} 20. c5 {[%emt 0:04:14]} Rcd8 {[%emt 0:04:47]} (20... bxc5 $142 21. g4 (21. dxc5 Ba6 $14) 21... Bg7) 21. g4 $16 {[%emt 0:03:00]} Ng7 {[%emt 0:03:05]} 22. Qf3 {[%emt 0:02:16] White has more active pieces.} Qe7 {[%emt 0:02:55]} 23. b4 {[%emt 0:02:48]} Rf8 {[%emt 0:04:46]} 24. Be4 {[%emt 0:04:19]} ({Worse is} 24. Nxc6 Bxc6 25. Qxc6 Bxd4 26. cxb6 Qh4 27. Rxd4 Rxd4 28. bxa7 Rxg4+ 29. Kf1 Rc4 $11) 24... Rxd4 $2 {[%emt 0:01:37] [#]} (24... bxc5 {was worth a try.} 25. bxc5 Bxe5 26. dxe5 Rxd1 27. Rxd1 Rd8) 25. Nd7 $1 $18 {[%emt 0:04:42][%mdl 64] Deflection, X-Ray Attack} ({Not} 25. Rxd4 Bxe5 26. Rd3 bxc5 $16) 25... Rxd7 {[%emt 0:02:35]} 26. Rxd7 {[%emt 0:00:04]} Qxd7 {[%emt 0:00:04]} 27. Qxf6 {[%emt 0:00:03][%csl Gh6][%cal Rf6g7]} Ne8 {[%emt 0:00:06]} 28. Qc3 {[%emt 0:00:34]} f6 {[%emt 0:01:27]} (28... b5 $142 29. Bf3 f6 30. Bxf8 Kxf8) 29. Bxf8 {[%emt 0:00:12] White is clearly winning.} Kxf8 {[%emt 0:00:01]} 30. b5 {[%emt 0:02:00] And now cxb6 would win.} e5 {[%emt 0:01:21]} 31. Bf3 {[%emt 0:02:06] Weighted Error Value: White=0.07 (flawless) /Black=0.51} 1-0

[Event "26th Womens ECCC 2022"]
[Site "Mayrhofen"]
[Date "2022.10.07"]
[Round "5.7"]
[White "Wagner, Dinara"]
[Black "Osmak, Yuliia"]
[Result "1-0"]
[ECO "D26"]
[WhiteElo "2390"]
[BlackElo "2428"]
[Annotator "TA"]
[PlyCount "117"]
[EventDate "2022.10.03"]
[EventType "team-tourn"]
[EventCountry "AUT"]
[SourceTitle "playchess.com"]
[Source "ChessBase"]
[SourceQuality "1"]
[TimeControl "40/5400+30:1800+30"]

{[%evp 17,117,15,20,14,14,13,20,17,23,24,20,16,30,18,20,25,21,20,26,14,46,37,77,84,84,83,79,38,44,50,29,38,126,126,126,121,147,152,144,145,197,152,152,152,165,165,206,179,175,175,201,201,204,204,218,201,201,201,275,275,365,365,365,347,405,400,404,404,364,391,362,349,650,652,650,626,613,612,2918,2393,2453,2784,1629,434,2657,2514,2404,1733,2233,1970,29973,29974,29974,29976,29976,29977,29978,29979,29979,29979,29978,29975]} 1. d4 {[%emt 0:00:09]} d5 {[%emt 0:00:12]} 2. c4 {[%emt 0:00:07]} dxc4 {[%emt 0:00:13]} 3. Nf3 {[%emt 0:00:05]} Nf6 {[%emt 0:00:07]} 4. e3 {[%emt 0:00:05]} e6 {[%emt 0:00:03]} 5. Bxc4 {[%emt 0:00:04]} c5 {[%emt 0:00:03]} 6. O-O {[%emt 0:00:05]} Nc6 {[%emt 0:00:04]} 7. a3 {[%emt 0:00:19]} a6 {[%emt 0:00:57]} 8. dxc5 {[%emt 0:00:18]} Qxd1 {[%emt 0:00:46]} 9. Rxd1 {[%emt 0:00:05]} Bxc5 {[%emt 0:00:06]} 10. Be2 {[%emt 0:01:55] D27: Queen's Gambit Accepted: Classical main line: 7 e4!? and 7 a4.} O-O {[%emt 0:02:20]} 11. b4 {[%emt 0:01:14]} Be7 {[%emt 0:00:28]} 12. Bb2 {[%emt 0:00:04] The position is equal.} Bd7 {[%emt 0:12:03]} 13. Nbd2 {[%emt 0:00:18]} Rfd8 {[%emt 0:00:08]} 14. Nb3 {[%emt 0:04:24]} Be8 {[%emt 0:02:23]} 15. Rac1 {[%emt 0:03:43]} Rxd1+ {[%emt 0:06:37]} 16. Bxd1 {[%emt 0:02:38]} Rd8 {[%emt 0:02:28]} 17. Be2 {[%emt 0:02:23] [#]} Ne4 $146 {[%emt 0:20:29]} ({Predecessor:} 17... Nd7 18. Nfd4 Ndb8 19. f4 Nxd4 20. Bxd4 Nc6 21. Bb6 Ra8 22. Bf3 Rb8 23. Kf2 Kf8 24. Rc3 Bd7 25. Bc5 Ke8 26. Bxe7 Nxe7 27. Nc5 Nd5 28. Bxd5 {½-½ (27) Andres Gonzalez,A (2518)-Velten,P (2449) San Sebastian 2017}) 18. Nfd4 {[%emt 0:04:04]} Nxd4 {[%emt 0:09:35]} 19. Bxd4 {[%emt 0:02:09]} Bb5 {[%emt 0:08:09]} 20. Bxb5 {[%emt 0:27:56]} axb5 {[%emt 0:01:45]} 21. Na5 {[%emt 0:05:34]} Nd6 {[%emt 0:06:30]} 22. Bc5 {[%emt 0:00:51] White is more active.} Rc8 {[%emt 0:04:06] [#] And now ...b6 would win.} 23. Rd1 {[%emt 0:00:58]} b6 {[%emt 0:03:31]} 24. Bxb6 {[%emt 0:01:28]} Nc4 {[%emt 0:00:08]} (24... Kf8 $1 $14) 25. Nxc4 $16 {[%emt 0:02:38]} Rxc4 {[%emt 0:00:14][%mdl 4096] Endgame KRB-KRB} 26. g3 {[%emt 0:02:56]} h5 {[%emt 0:02:28]} 27. Rd7 {[%emt 0:03:23]} Bf6 {[%emt 0:00:28]} 28. Rb7 {[%emt 0:01:03]} h4 {[%emt 0:07:01]} (28... Rc3 $16 {is a better defense.} 29. Bc5 g5 30. Rxb5 Rxa3 31. Rb8+ Kg7) 29. Kg2 {[%emt 0:01:16]} Bb2 {[%emt 0:01:04]} 30. Bc5 {[%emt 0:00:21]} Bxa3 {[%emt 0:00:31]} 31. Rxb5 {[%emt 0:00:04]} Kh7 {[%emt 0:01:23]} 32. Be7 {[%emt 0:02:27]} hxg3 {[%emt 0:00:15]} 33. hxg3 {[%emt 0:00:10]} Rc3 {[%emt 0:02:17]} 34. Rb7 {[%emt 0:03:03]} Rb3 {[%emt 0:00:12]} 35. Kf3 {[%emt 0:00:28]} Kg6 {[%emt 0:01:38]} 36. g4 {[%emt 0:01:15]} Rb2 {[%emt 0:00:43]} 37. Bf8 {[%emt 0:02:45]} Rb3 {[%emt 0:01:44]} 38. Ke4 {[%emt 0:00:43]} Rc3 {[%emt 0:04:04]} 39. f4 {[%emt 0:02:28]} Rc4+ {[%emt 0:01:29]} 40. Kd3 {[%emt 0:00:51]} Rc1 {[%emt 0:00:41]} 41. Ra7 {[%emt 0:44:55]} Bb2 {[%emt 0:31:03]} 42. b5 {[%emt 0:01:08][%cal Bb4b5,Bb5b6,Bb6b7][%mdl 32] [#] Hoping for b6.} Rc3+ {[%emt 0:00:33]} 43. Kd2 {[%emt 0:00:35] Strongly threatening b6.} Rb3 {[%emt 0:00:00]} 44. Rb7 {[%emt 0:00:00] aiming for Kc2.} Ba3 $2 {[%emt 0:00:00]} (44... Bf6 45. b6 Bd8) 45. Bxa3 $18 {[%emt 0:00:00]} Rxa3 {[%emt 0:00:00] KR-KR} 46. b6 {[%emt 0:00:00]} Rb3 {[%emt 0:00:00]} 47. Kc2 {[%emt 0:00:00]} Rxe3 {[%emt 0:00:00]} 48. Rd7 {[%emt 0:00:00] Intending b7 and mate.} Re4 {[%emt 0:00:00]} 49. Kc3 {[%emt 0:00:00] White wants to mate with b7.} Re1 {[%emt 0:00:00]} 50. Rd2 {[%emt 0:00:00]} (50. Kb2 $142 {b7 would kill now.} Re2+ 51. Kb3) 50... Rh1 {[%emt 0:00:00]} (50... Rc1+ $142 51. Rc2 Rd1) 51. b7 {[%emt 0:00:00]} Rh8 {[%emt 0:00:00]} 52. Kc4 {[%emt 0:00:00] Threatens to win with Rb2.} Kf6 {[%emt 0:00:00]} 53. Rd7 {[%emt 0:01:05]} g5 {[%emt 0:00:00]} 54. fxg5+ {[%emt 0:00:16] White mates.} Kxg5 {[%emt 0:00:00]} 55. Rxf7 {[%emt 0:00:10]} Kxg4 {[%emt 0:00:00]} 56. Kd4 {[%emt 0:00:22]} Re8 {[%emt 0:00:00]} 57. Ke5 {[%emt 0:00:07]} Kg5 {[%emt 0:00:00]} 58. Rg7+ {[%emt 0:00:12]} Kh6 {[%emt 0:00:00]} 59. Rc7 {[%emt 0:00:02] Weighted Error Value: White=0.21 (precise) /Black=0.36} 1-0

[Event "26th Womens ECCC 2022"]
[Site "Mayrhofen"]
[Date "2022.10.07"]
[Round "5.8"]
[White "Maltsevskaya, Aleksandra"]
[Black "Heinemann, Josefine"]
[Result "1-0"]
[ECO "C27"]
[WhiteElo "2389"]
[BlackElo "2318"]
[Annotator "TA"]
[PlyCount "55"]
[EventDate "2022.10.03"]
[EventType "team-tourn"]
[EventCountry "AUT"]
[SourceTitle "playchess.com"]
[Source "ChessBase"]
[SourceQuality "1"]
[TimeControl "40/5400+30:1800+30"]

{[%evp 9,55,0,0,-57,-39,-25,-16,-97,-3,-12,-7,-85,-98,-99,-98,-99,-80,-94,-106,-138,-139,-137,-137,-181,-45,-71,79,45,202,210,227,242,687,442,437,414,452,440,517,510,29990,29991,29991,29989,29989,29990,29990,29991]} 1. e4 {[%emt 0:00:03]} e5 {[%emt 0:00:08]} 2. Nc3 {[%emt 0:00:07]} Nf6 {[%emt 0:00:21][%cal Bg8f6,Bf6e4,Be4d6,Bd6f5,Bf5e3][%mdl 32]} 3. Bc4 {[%emt 0:00:07]} Nxe4 {[%emt 0:01:17]} 4. Qh5 {[%emt 0:00:08]} Nd6 {[%emt 0:00:05]} 5. Bb3 {[%emt 0:00:04]} Be7 $1 {[%emt 0:06:10]} 6. f4 {[%emt 0:00:22] C27: Vienna Game: 2...Nf6 3 Bc4 Nxe4.} ({Better is} 6. Qxe5 $11 O-O 7. Nge2) 6... exf4 {[%emt 0:07:31] [#]} 7. Nf3 $146 {[%emt 0:01:14]} ({Predecessor:} 7. d4 Nc6 8. Bxf4 Nxd4 9. O-O-O Nxb3+ 10. axb3 g6 11. Qe5 O-O 12. Nd5 Re8 13. Re1 Bg5 14. Bxg5 Rxe5 15. Rxe5 Qf8 16. Nf3 h6 17. Be7 Qg7 18. Nf6+ Kh8 19. Bxd6 Qxf6 20. Re8+ {1-0 (20) Bortnyk,O (2604)-Rodriguez Hernandez,L (2385) Chess.com INT 2021}) 7... g6 {[%emt 0:09:27]} 8. Qh3 {[%emt 0:00:17]} (8. Qe5 $11 O-O 9. O-O) 8... O-O {[%emt 0:01:06]} (8... Nf5 $17 {[%cal Od7d5] ...d5! is the strong threat.} 9. d3 c6 10. Bxf4 d5) 9. d4 $11 {[%emt 0:00:06]} Nf5 {[%emt 0:06:07] Hoping for ...h5.} 10. g4 {[%emt 0:14:06] Prevents h5.} (10. Bxf4 $11 {remains equal.} h5 11. g4 hxg4 12. Qxg4) 10... Ne3 $17 {[%emt 0:04:50]} 11. Bxe3 {[%emt 0:04:12]} fxe3 12. Qh6 {[%emt 0:22:10] [#] aiming for h4.} Bf6 {[%emt 0:08:55]} 13. h4 {[%emt 0:00:48] Threatening mate with Ng5.} Bg7 {[%emt 0:00:40]} (13... d5 $2 14. Ng5 Bxg5 15. hxg5 $18) 14. Qf4 {[%emt 0:00:11]} c6 {[%emt 0:04:19]} 15. d5 {[%emt 0:04:10]} d6 {[%emt 0:02:27]} 16. h5 {[%emt 0:10:38]} g5 {[%emt 0:11:06]} ({Black should try} 16... c5 $19 {Strongly threatening ...Nd7.} 17. O-O-O Qf6) 17. Nxg5 $15 {[%emt 0:02:55][%cal Bf3g5,Bg5e4,Be4f6][%mdl 32] [#]} Be5 {[%emt 0:00:35]} (17... c5 $1 $17 {keeps the pressure on. And now ...Bh6 would win.} 18. Nge4 Be5) 18. Qxe3 $16 {[%emt 0:00:28] White is more active.} Bxc3+ $2 {[%emt 0:04:21] This costs Black the game.} (18... Bd4 $14 19. Qxd4 Qxg5) 19. bxc3 $18 {[%emt 0:00:21] Black must now prevent 0-0-0.} Re8 {[%emt 0:03:35]} (19... Bxg4 $2 20. Qf4 Qe7+ 21. Kf2 Qe2+ 22. Kg3 $18) 20. Ne4 {[%emt 0:00:06]} Qe7 $2 {[%emt 0:00:22] [#]} (20... Re5) 21. Kd2 $1 {[%emt 0:06:26][%cal Be1d2,Bd2c1,Bc1b2][%mdl 32]} Nd7 {[%emt 0:06:11] Prevents Nf6+.} (21... Qxe4 $2 22. Qg5+ Kf8 23. Rae1 Qg2+ 24. Kc1 Qxh1 25. Rxh1) 22. Rae1 {[%emt 0:00:15]} Kh8 {[%emt 0:03:11]} (22... Ne5 $2 23. Qh6 f5 24. Nf6+ Kh8 25. Nxe8 Qg5+ 26. Qxg5 $18) 23. Rhf1 {[%emt 0:15:12] Threatens to win with dxc6.} (23. Nxd6 Qxe3+ 24. Rxe3 Rxe3 $18) 23... Ne5 {[%emt 0:04:45]} 24. Nf6 {[%emt 0:00:33] Intending Qh6 and mate.} Bd7 {[%emt 0:03:18]} (24... Bxg4 $18 25. dxc6 (25. Nxe8 Rxe8 26. dxc6 f5 $16) (25. Qe4 Nf3+ 26. Qxf3 Bxf3 $16) 25... bxc6 26. Nxg4 (26. Nxe8 Rxe8 27. Rxf7 Qd8 $18) (26. Qe4 Nf3+ 27. Qxf3 Bxf3 $16) 26... Qh4 27. Nxe5 Rxe5) 25. Qh6 {[%emt 0:00:46][%csl Gf6][%cal Rh6h7] White mates.} Nf3+ {[%emt 0:00:59]} 26. Kc1 {[%emt 0:00:08][%csl Gf6][%cal Rh6h7]} Qxe1+ {[%emt 0:00:10]} 27. Rxe1 {[%emt 0:00:05]} Rxe1+ {[%emt 0:00:03]} 28. Kb2 {[%emt 0:00:06] Weighted Error Value: White=0.25 (precise) /Black=0.79} 1-0